fUSD/lending_fUSD_20250911
["ID","MTS","AMOUNT","RATE_DAILY","PERIOD"]
[384922566,1757627465037,-2494.05,0.00027671,7]
[384922567,1757627465046,-1961.97,0.00027671,7]
[384922568,1757627465055,-400.0,0.00027671,7]
[384922569,1757627465064,-715.83,0.00027671,7]
[384922570,1757627465073,-400.0,0.00027671,7]
[384922571,1757627465176,-400.0,0.00027671,7]
[384922572,1757627465185,-400.0,0.00027671,7]
[384922573,1757627465194,-2400.41,0.00027671,7]
[384922574,1757627465204,-400.0,0.00027671,7]
[384922575,1757627465213,-400.0,0.00027671,7]
[384922576,1757627465222,-413.74314675,0.00027671,7]
[384922577,1757627465231,-400.0,0.00027671,7]
[384922578,1757627465240,-1350.64,0.00027671,7]
[384922579,1757627465249,-151.0,0.00027671,7]
[384922580,1757627465259,-151.0,0.00027671,7]
[384922581,1757627465268,-310.0,0.00027671,7]
[384922582,1757627465277,-400.0,0.00027671,7]
[384922583,1757627465287,-158.902941,0.00027671,7]
[384922584,1757627465296,-1152.15,0.00027671,7]
[384922585,1757627465310,-400.0,0.00027671,7]
[384922586,1757627465319,-1942.36,0.00027671,7]
[384922587,1757627465328,-400.0,0.00027671,7]
[384922588,1757627465338,-409.7723963,0.00027671,7]
[384922589,1757627465347,-1745.53,0.00027671,7]
[384922590,1757627465356,-400.0,0.00027671,7]
[384922591,1757627465365,-400.0,0.00027671,7]
[384922592,1757627465374,-1304.87,0.00027671,7]
[384922593,1757627465383,-2239.53,0.00027671,7]
[384922594,1757627465393,-400.0,0.00027671,7]
[384922595,1757627465402,-151.0,0.00027671,7]
[384922596,1757627465411,-151.0,0.00027671,7]
[384922597,1757627465420,-400.0,0.00027671,7]
[384922598,1757627465429,-1080.41,0.00027671,7]
[384922599,1757627465438,-250.595581,0.00027671,7]
[384922600,1757627465447,-400.0,0.00027671,7]
[384922601,1757627465456,-1587.86,0.00027671,7]
[384922602,1757627465465,-400.0,0.00027671,7]
[384922603,1757627465474,-772.24,0.00027671,7]
[384922604,1757627465483,-151.0,0.00027671,7]
[384922605,1757627465492,-1535.99,0.00027671,7]
[384922606,1757627465500,-151.0,0.00027671,7]
[384922607,1757627465510,-400.0,0.00027671,7]
[384922608,1757627465519,-300.903707,0.00027671,7]
[384922609,1757627465527,-400.0,0.00027671,7]
[384922610,1757627465537,-151.0,0.00027671,7]
[384922611,1757627465545,-151.0,0.00027671,7]
[384922612,1757627465555,-151.0,0.00027671,7]
[384922613,1757627465564,-151.0,0.00027671,7]
[384922614,1757627465573,-151.0,0.00027671,7]
[384922615,1757627465582,-400.0,0.00027671,7]
[384922616,1757627465590,-291.203272,0.00027671,7]
[384922617,1757627465599,-1709.93,0.00027671,7]
[384922618,1757627465608,-151.0,0.00027671,7]
[384922619,1757627465617,-681.33,0.00027671,7]
[384922620,1757627465626,-151.0,0.00027671,7]
[384922621,1757627465635,-827.79,0.00027671,7]
[384922622,1757627465644,-1405.7,0.00027671,7]
[384922623,1757627465653,-1894.71,0.00027671,7]
[384922624,1757627465662,-229.18784,0.00027671,7]
[384922625,1757627465671,-1305.44,0.00027671,7]
[384922626,1757627465680,-670.2,0.00027671,7]
[384922627,1757627465689,-2336.96,0.00027671,7]
[384922628,1757627465698,-400.0,0.00027671,7]
[384922629,1757627465707,-400.0,0.00027671,7]
[384922630,1757627465716,-663.76,0.00027671,7]
[384922631,1757627465725,-1721.31,0.00027671,7]
[384922632,1757627465734,-400.0,0.00027671,7]
[384922633,1757627465742,-400.0,0.00027671,7]
[384922634,1757627465751,-400.008421,0.00027671,7]
[384922635,1757627465760,-2672.17,0.00027671,7]
[384922636,1757627465769,-1652.48,0.00027671,7]
[384922637,1757627465778,-518.7636955,0.00027671,7]
[384922638,1757627465787,-1555.35,0.00027671,7]
[384922639,1757627465796,-400.0,0.00027671,7]
[384922640,1757627465805,-400.0,0.00027671,7]
[384922641,1757627465814,-400.0,0.00027671,7]
[384922642,1757627465823,-1705.56,0.00027671,7]
[384922643,1757627465832,-400.0,0.00027671,7]
[384922644,1757627465840,-400.0,0.00027671,7]
[384922645,1757627465849,-400.0,0.00027671,7]
[384922646,1757627465858,-400.0,0.00027671,7]
[384922647,1757627465867,-400.0,0.00027671,7]
[384922648,1757627465875,-900.41,0.00027671,7]
[384922649,1757627465884,-897.52,0.00027671,7]
[384922650,1757627465894,-1924.73,0.00027671,7]
[384922651,1757627465902,-400.0,0.00027671,7]
[384922652,1757627465911,-2115.38,0.00027671,7]
[384922653,1757627465922,-400.0,0.00027671,7]
[384922654,1757627465931,-2279.93,0.00027671,7]
[384922655,1757627465941,-151.0,0.00027671,7]
[384922656,1757627465950,-151.0,0.00027671,7]
[384922657,1757627465959,-400.0,0.00027671,7]
[384922658,1757627465968,-151.0,0.00027671,7]
[384922659,1757627465977,-151.0,0.00027671,7]
[384922660,1757627465986,-400.0,0.00027671,7]
[384922661,1757627465995,-400.0,0.00027671,7]
[384922662,1757627466004,-622.31,0.00027671,7]
[384922663,1757627466013,-1153.84,0.00027671,7]
[384922664,1757627466022,-400.0,0.00027671,7]
[384922665,1757627466034,-519.0,0.00027671,7]
[384922666,1757627466043,-400.0,0.00027671,7]
[384922667,1757627466052,-1849.34,0.00027671,7]
[384922668,1757627466062,-400.0,0.00027671,7]
[384922669,1757627466071,-1244.32,0.00027671,7]
[384922670,1757627466081,-418.22,0.00027671,7]
[384922671,1757627466091,-1903.92,0.00027671,7]
[384922672,1757627466100,-926.52,0.00027671,7]
[384922673,1757627466110,-2054.75,0.00027671,7]
[384922674,1757627466119,-2269.52,0.00027671,7]
[384922675,1757627466128,-891.18,0.00027671,7]
[384922676,1757627466138,-151.0,0.00027671,7]
[384922677,1757627466147,-151.0,0.00027671,7]
[384922678,1757627466156,-1816.52,0.00027671,7]
[384922679,1757627466165,-774.47,0.00027671,7]
[384922680,1757627466175,-151.0,0.00027671,7]
[384922681,1757627466184,-151.0,0.00027671,7]
[384922682,1757627466193,-400.0,0.00027671,7]
[384922683,1757627466204,-229.942516,0.00027671,7]
[384922684,1757627466213,-151.0,0.00027671,7]
[384922685,1757627466222,-400.0,0.00027671,7]
[384922686,1757627466232,-1861.78,0.00027671,7]
[384922687,1757627466242,-1516.31,0.00027671,7]
[384922688,1757627466251,-1776.85,0.00027671,7]
[384922689,1757627466261,-400.0,0.00027671,7]
[384922690,1757627466270,-400.0,0.00027671,7]
[384922691,1757627466280,-400.0,0.00027671,7]
[384922692,1757627466289,-400.0,0.00027671,7]
[384922693,1757627466299,-400.0,0.00027671,7]
[384922694,1757627466313,-400.0,0.00027671,7]
[384922695,1757627466322,-777.81,0.00027671,7]
[384922696,1757627466332,-151.0,0.00027671,7]
[384922697,1757627466343,-946.01,0.00027671,7]
[384922698,1757627466353,-151.0,0.00027671,7]
[384922699,1757627466363,-151.0,0.00027671,7]
[384922700,1757627466372,-1366.26,0.00027671,7]
[384922701,1757627466383,-400.0,0.00027671,7]
[384922702,1757627466393,-2170.93,0.00027671,7]
[384922703,1757627466403,-400.0,0.00027671,7]
[384922704,1757627466414,-619.87,0.00027671,7]
[384922705,1757627466425,-544.78,0.00027671,7]
[384922706,1757627466436,-400.0,0.00027671,7]
[384922707,1757627466446,-400.0,0.00027671,7]
[384922708,1757627466455,-400.0,0.00027671,7]
[384922709,1757627466464,-400.0,0.00027671,7]
[384922710,1757627466474,-2122.23,0.00027671,7]
[384922711,1757627466483,-400.0,0.00027671,7]
[384922712,1757627466493,-1168.45,0.00027671,7]
[384922713,1757627466502,-928.76,0.00027671,7]
[384922714,1757627466511,-1186.62,0.00027671,7]
[384922715,1757627466520,-1039.0,0.00027671,7]
[384922716,1757627466530,-400.0,0.00027671,7]
[384922717,1757627466539,-1372.99,0.00027671,7]
[384922718,1757627466548,-400.0,0.00027671,7]
[384922719,1757627466558,-525.55,0.00027671,7]
[384922720,1757627466567,-400.0,0.00027671,7]
[384922721,1757627466577,-1647.59,0.00027671,7]
[384922722,1757627466586,-400.0,0.00027671,7]
[384922723,1757627466596,-470.22313954,0.00027671,7]
[384922724,1757627466605,-400.0,0.00027671,7]
[384922725,1757627466615,-451.69,0.00027671,7]
[384922726,1757627466624,-730.82,0.00027671,7]
[384922727,1757627466634,-1488.12,0.00027671,7]
[384922728,1757627466643,-400.0,0.00027671,7]
[384922729,1757627466653,-400.0,0.00027671,7]
[384922730,1757627466663,-2407.69,0.00027671,7]
[384922731,1757627466673,-400.0,0.00027671,7]
[384922732,1757627466683,-400.0,0.00027671,7]
[384922733,1757627466692,-1661.64,0.00027671,7]
[384922734,1757627466702,-400.0,0.00027671,7]
[384922735,1757627466712,-400.0,0.00027671,7]
[384922736,1757627466723,-1847.44,0.00027671,7]
[384922737,1757627466732,-812.44,0.00027671,7]
[384922738,1757627466742,-400.0,0.00027671,7]
[384922739,1757627466751,-2974.72,0.00027671,7]
[384922740,1757627466761,-2154.39,0.00027671,7]
[384922741,1757627466770,-400.0,0.00027671,7]
[384922742,1757627466779,-400.0,0.00027671,7]
[384922743,1757627466789,-400.0,0.00027671,7]
[384922744,1757627466799,-400.0,0.00027671,7]
[384922745,1757627466808,-2409.57,0.00027671,7]
[384922746,1757627466819,-400.0,0.00027671,7]
[384922747,1757627466828,-1505.1,0.00027671,7]
[384922748,1757627466837,-826.95,0.00027671,7]
[384922749,1757627466847,-2357.19,0.00027671,7]
[384922750,1757627466856,-415.59,0.00027671,7]
[384922751,1757627466865,-400.0,0.00027671,7]
[384922752,1757627466875,-400.0,0.00027671,7]
[384922753,1757627466884,-400.0,0.00027671,7]
[384922754,1757627466895,-400.0,0.00027671,7]
[384922755,1757627466905,-1209.2,0.00027671,7]
[384922756,1757627466914,-1222.72,0.00027671,7]
[384922757,1757627466923,-467.93,0.00027671,7]
[384922758,1757627466932,-2029.82,0.00027671,7]
[384922759,1757627466942,-2376.92,0.00027671,7]
[384922760,1757627466952,-1576.35,0.00027671,7]
[384922761,1757627466961,-400.0,0.00027671,7]
[384922762,1757627466971,-400.0,0.00027671,7]
[384922763,1757627466980,-619.65,0.00027671,7]
[384922764,1757627466989,-400.0,0.00027671,7]
[384922765,1757627466999,-831.1,0.00027671,7]
[384922766,1757627467008,-2286.96,0.00027671,7]
[384922767,1757627467018,-400.0,0.00027671,7]
[384922768,1757627467029,-683.59,0.00027671,7]
[384922769,1757627467039,-663.74,0.00027671,7]
[384922770,1757627467048,-400.0,0.00027671,7]
[384922771,1757627467057,-517.61,0.00027671,7]
[384922772,1757627467066,-753.25,0.00027671,7]
[384922773,1757627467075,-2533.56,0.00027671,7]
[384922774,1757627467085,-400.0,0.00027671,7]
[384922775,1757627467095,-1527.86,0.00027671,7]
[384922776,1757627467104,-400.0,0.00027671,7]
[384922777,1757627467115,-400.0,0.00027671,7]
[384922778,1757627467125,-400.0,0.00027671,7]
[384922779,1757627467134,-400.0,0.00027671,7]
[384922780,1757627467145,-1146.83,0.00027671,7]
[384922781,1757627467154,-400.0,0.00027671,7]
[384922782,1757627467163,-400.0,0.00027671,7]
[384922783,1757627467172,-1894.11,0.00027671,7]
[384922784,1757627467181,-487.19,0.00027671,7]
[384922785,1757627467190,-400.0,0.00027671,7]
[384922786,1757627467200,-151.0,0.00027671,7]
[384922787,1757627467209,-151.0,0.00027671,7]
[384922788,1757627467218,-1816.71,0.00027671,7]
[384922789,1757627467227,-621.23,0.00027671,7]
[384922790,1757627467236,-636.93,0.00027671,7]
[384922791,1757627467245,-400.0,0.00027671,7]
[384922792,1757627467254,-597.77,0.00027671,7]
[384922793,1757627467263,-1978.38,0.00027671,7]
[384922794,1757627467272,-400.0,0.00027671,7]
[384922795,1757627467282,-400.0,0.00027671,7]
[384922796,1757627467292,-804.92,0.00027671,7]
[384922797,1757627467304,-1032.8,0.00027671,7]
[384922798,1757627467319,-400.0,0.00027671,7]
[384922799,1757627467330,-400.0,0.00027671,7]
[384922800,1757627467340,-2188.58,0.00027671,7]
[384922801,1757627467349,-1200.87,0.00027671,7]
[384922802,1757627467358,-1046.78,0.00027671,7]
[384922803,1757627467367,-783.81,0.00027671,7]
[384922804,1757627467376,-400.0,0.00027671,7]
[384922805,1757627467386,-1611.77,0.00027671,7]
[384922806,1757627467398,-434.23,0.00027671,7]
[384922807,1757627467408,-421.01107761,0.00027671,7]
[384922808,1757627467418,-400.0,0.00027671,7]
[384922809,1757627467427,-400.0,0.00027671,7]
[384922810,1757627467437,-151.0,0.00027671,7]
[384922811,1757627467446,-151.0,0.00027671,7]
[384922812,1757627467455,-2777.49,0.00027671,7]
[384922813,1757627467465,-467.51,0.00027671,7]
[384922814,1757627467474,-400.0,0.00027671,7]
[384922815,1757627467483,-151.0,0.00027671,7]
[384922816,1757627467493,-2380.05,0.00027671,7]
[384922817,1757627467502,-151.0,0.00027671,7]
[384922818,1757627467511,-151.0,0.00027671,7]
[384922819,1757627467520,-400.0,0.00027671,7]
[384922820,1757627467529,-151.0,0.00027671,7]
[384922821,1757627467539,-400.0,0.00027671,7]
[384922822,1757627467548,-400.0,0.00027671,7]
[384922823,1757627467558,-432.14,0.00027671,7]
[384922824,1757627467567,-936.21,0.00027671,7]
[384922825,1757627467576,-400.0,0.00027671,7]
[384922826,1757627467585,-612.46,0.00027671,7]
[384922827,1757627467594,-400.0,0.00027671,7]
[384922828,1757627467603,-400.0,0.00027671,7]
[384922829,1757627467612,-619.53,0.00027671,7]
[384922830,1757627467621,-400.0,0.00027671,7]
[384922831,1757627467629,-502.36,0.00027671,7]
[384922832,1757627467639,-726.74,0.00027671,7]
[384922833,1757627467647,-400.0,0.00027671,7]
[384922834,1757627467656,-708.25,0.00027671,7]
[384922835,1757627467665,-400.0,0.00027671,7]
[384922836,1757627467675,-687.63,0.00027671,7]
[384922837,1757627467684,-525.18,0.00027671,7]
[384922838,1757627467693,-2492.29,0.00027671,7]
[384922839,1757627467702,-400.0,0.00027671,7]
[384922840,1757627467711,-1811.61,0.00027671,7]
[384922841,1757627467719,-400.0,0.00027671,7]
[384922842,1757627467728,-2450.83,0.00027671,7]
[384922843,1757627467737,-3678.48,0.00027671,7]
[384922844,1757627467747,-451.31,0.00027671,7]
[384922845,1757627467756,-400.0,0.00027671,7]
[384922846,1757627467765,-400.0,0.00027671,7]
[384922847,1757627467774,-1480.88,0.00027671,7]
[384922848,1757627467783,-268.83220989,0.00027671,7]
[384922849,1757627467792,-400.0,0.00027671,7]
[384922850,1757627467801,-521.03252077,0.00027671,7]
[384922851,1757627467810,-400.0,0.00027671,7]
[384922852,1757627467819,-824.46,0.00027671,7]
[384922853,1757627467830,-400.0,0.00027671,7]
[384922854,1757627467841,-400.0,0.00027671,7]
[384922855,1757627467850,-400.0,0.00027671,7]
[384922856,1757627467859,-615.43,0.00027671,7]
[384922857,1757627467869,-1733.33,0.00027671,7]
[384922858,1757627467879,-1426.55,0.00027671,7]
[384922859,1757627467887,-400.0,0.00027671,7]
[384922860,1757627467896,-400.0,0.00027671,7]
[384922861,1757627467906,-1444.75,0.00027671,7]
[384922862,1757627467915,-656.5,0.00027671,7]
[384922863,1757627467928,-663.82,0.00027671,7]
[384922864,1757627467941,-400.0,0.00027671,7]
[384922865,1757627467951,-1413.55,0.00027671,7]
[384922866,1757627467960,-1859.7,0.00027671,7]
[384922867,1757627467969,-400.0,0.00027671,7]
[384922868,1757627467978,-400.0,0.00027671,7]
[384922869,1757627467987,-1657.72,0.00027671,7]
[384922870,1757627467996,-400.0,0.00027671,7]
[384922871,1757627468005,-400.0,0.00027671,7]
[384922872,1757627468014,-1771.5,0.00027671,7]
[384922873,1757627468023,-400.0,0.00027671,7]
[384922874,1757627468032,-1895.65,0.00027671,7]
[384922875,1757627468041,-1281.78,0.00027671,7]
[384922876,1757627468050,-1064.31,0.00027671,7]
[384922877,1757627468059,-1607.9,0.00027671,7]
[384922878,1757627468070,-618.96,0.00027671,7]
[384922879,1757627468089,-400.0,0.00027671,7]
[384922880,1757627468099,-400.0,0.00027671,7]
[384922881,1757627468108,-400.0,0.00027671,7]
[384922882,1757627468118,-151.0,0.00027671,7]
[384922883,1757627468131,-555.14,0.00027671,7]
[384922884,1757627468140,-151.0,0.00027671,7]
[384922885,1757627468150,-151.0,0.00027671,7]
[384922886,1757627468160,-151.0,0.00027671,7]
[384922887,1757627468170,-400.0,0.00027671,7]
[384922888,1757627468180,-151.0,0.00027671,7]
[384922889,1757627468189,-400.0,0.00027671,7]
[384922890,1757627468199,-151.0,0.00027671,7]
[384922891,1757627468209,-400.0,0.00027671,7]
[384922892,1757627468218,-8723.99,0.00027671,7]
[384922893,1757627468227,-151.0,0.00027671,7]
[384922894,1757627468236,-151.0,0.00027671,7]
[384922895,1757627468245,-151.0,0.00027671,7]
[384922896,1757627468254,-400.0,0.00027671,7]
[384922897,1757627468263,-151.0,0.00027671,7]
[384922898,1757627468272,-151.697376,0.00027671,7]
[384922899,1757627468281,-413.57,0.00027671,7]
[384922900,1757627468290,-10846.33,0.00027671,7]
[384922901,1757627468299,-2723.99,0.00027671,7]
[384922902,1757627468310,-400.0,0.00027671,7]
[384922903,1757627468320,-2416.16,0.00027671,7]
[384922904,1757627468330,-1588.95,0.00027671,7]
[384922905,1757627468339,-1251.69,0.00027671,7]
[384922906,1757627468348,-400.0,0.00027671,7]
[384922907,1757627468357,-3367.99,0.00027671,7]
[384922908,1757627468367,-571.98,0.00027671,7]
[384922909,1757627468376,-1485.57,0.00027671,7]
[384922910,1757627468386,-400.0,0.00027671,7]
[384922911,1757627468395,-1511.45,0.00027671,7]
[384922912,1757627468405,-580.95,0.00027671,7]
[384922913,1757627468414,-1402.77,0.00027671,7]
[384922914,1757627468423,-2512.68,0.00027671,7]
[384922915,1757627468433,-400.0,0.00027671,7]
[384922916,1757627468443,-151.0,0.00027671,7]
[384922917,1757627468452,-151.0,0.00027671,7]
[384922918,1757627468461,-400.0,0.00027671,7]
[384922919,1757627468470,-151.0,0.00027671,7]
[384922920,1757627468479,-1100.85,0.00027671,7]
[384922921,1757627468488,-151.0,0.00027671,7]
[384922922,1757627468497,-151.0,0.00027671,7]
[384922923,1757627468506,-400.0,0.00027671,7]
[384922924,1757627468515,-151.0,0.00027671,7]
[384922925,1757627468524,-2129.92,0.00027671,7]
[384922926,1757627468533,-151.0,0.00027671,7]
[384922927,1757627468542,-151.0,0.00027671,7]
[384922928,1757627468551,-1468.07,0.00027671,7]
[384922929,1757627468560,-151.0,0.00027671,7]
[384922930,1757627468569,-1235.68,0.00027671,7]
[384922931,1757627468579,-400.0,0.00027671,7]
[384922932,1757627468590,-262.428035,0.00027671,7]
[384922933,1757627468599,-400.0,0.00027671,7]
[384922934,1757627468608,-400.0,0.00027671,7]
[384922935,1757627468617,-1148.27,0.00027671,7]
[384922936,1757627468626,-659.2,0.00027671,7]
[384922937,1757627468635,-677.06,0.00027671,7]
[384922938,1757627468644,-400.0,0.00027671,7]
[384922939,1757627468653,-4042.54,0.00027671,7]
[384922940,1757627468663,-1478.86,0.00027671,7]
[384922941,1757627468672,-596.08,0.00027671,7]
[384922942,1757627468682,-3121.58,0.00027671,7]
[384922943,1757627468692,-1327.37,0.00027671,7]
[384922944,1757627468703,-2116.65,0.00027671,7]
[384922945,1757627468714,-400.0,0.00027671,7]
[384922946,1757627468725,-412.03,0.00027671,7]
[384922947,1757627468735,-400.0,0.00027671,7]
[384922948,1757627468746,-400.0,0.00027671,7]
[384922949,1757627468757,-1719.45,0.00027671,7]
[384922950,1757627468766,-1710.12,0.00027671,7]
[384922951,1757627468775,-1987.08,0.00027671,7]
[384922952,1757627468784,-400.0,0.00027671,7]
[384922953,1757627468793,-1450.37,0.00027671,7]
[384922954,1757627468802,-523.567677,0.00027671,7]
[384922955,1757627468811,-1612.89,0.00027671,7]
[384922956,1757627468821,-400.0,0.00027671,7]
[384922957,1757627468830,-513.59,0.00027671,7]
[384922958,1757627468840,-400.0,0.00027671,7]
[384922959,1757627468850,-836.01,0.00027671,7]
[384922960,1757627468859,-168.41210016,0.00027671,7]
[384922961,1757627468869,-400.0,0.00027671,7]
[384922962,1757627468878,-3415.13,0.00027671,7]
[384922963,1757627468887,-400.0,0.00027671,7]
[384922964,1757627468897,-1717.5,0.00027671,7]
[384922965,1757627468906,-660.1,0.00027671,7]
[384922966,1757627468915,-400.0,0.00027671,7]
[384922967,1757627468924,-2173.97,0.00027671,7]
[384922968,1757627468933,-3404.31,0.00027671,7]
[384922969,1757627468942,-2122.67,0.00027671,7]
[384922970,1757627468952,-400.0,0.00027671,7]
[384922971,1757627468961,-500.0,0.00027671,2]
[384922972,1757627468970,-400.0,0.00027671,7]
[384922973,1757627468979,-1583.16404,0.00027671,7]
[384922974,1757627468989,-1824.59,0.00027671,7]
[384922975,1757627468998,-1583.16404,0.00027671,7]
[384922976,1757627469008,-2940.84,0.00027671,7]
[384922977,1757627469017,-1583.16404,0.00027671,7]
[384922978,1757627469026,-400.0,0.00027671,7]
[384922979,1757627469035,-400.0,0.00027671,7]
[384922980,1757627469045,-2046.07,0.00027671,7]
[384922981,1757627469054,-1583.16404,0.00027671,7]
[384922982,1757627469063,-1583.16404,0.00027671,7]
[384922983,1757627469073,-400.0,0.00027671,7]
[384922984,1757627469082,-1664.51,0.00027671,7]
[384922985,1757627469092,-1583.16404,0.00027671,7]
[384922986,1757627469102,-400.0,0.00027671,7]
[384922987,1757627469112,-400.0,0.00027671,7]
[384922988,1757627469122,-1145.88,0.00027671,7]
[384922989,1757627469132,-2668.52,0.00027671,7]
[384922990,1757627469143,-1583.16404,0.00027671,7]
[384922991,1757627469154,-1583.16404,0.00027671,7]
[384922992,1757627469165,-1583.16404,0.00027671,7]
[384922993,1757627469175,-400.0,0.00027671,7]
[384922994,1757627469185,-400.0,0.00027671,7]
[384922995,1757627469196,-1418.74,0.00027671,7]
[384922996,1757627469205,-1583.16404,0.00027671,7]
[384922997,1757627469370,-1583.16404,0.00027671,7]
[384922998,1757627469381,-1033.62,0.00027671,7]
[384922999,1757627469390,-1583.164034,0.00027671,7]
[384923000,1757627469399,-400.0,0.00027671,7]
[384923001,1757627469408,-857.22,0.00027671,7]
[384923002,1757627469418,-400.0,0.00027671,7]
[384923003,1757627469427,-400.0,0.00027671,7]
[384923004,1757627469436,-400.0,0.00027671,7]
[384923005,1757627469446,-400.0,0.00027671,7]
[384923006,1757627469455,-1785.27,0.00027671,7]
[384923007,1757627469465,-1768.54,0.00027671,7]
[384923008,1757627469474,-3561.21,0.00027671,7]
[384923009,1757627469483,-400.0,0.00027671,7]
[384923010,1757627469492,-1525.18,0.00027671,7]
[384923011,1757627469502,-412.28,0.00027671,7]
[384923012,1757627469511,-400.0,0.00027671,7]
[384923013,1757627469520,-400.0,0.00027671,7]
[384923014,1757627469530,-1709.68,0.00027671,7]
[384923015,1757627469539,-440.38,0.00027671,7]
[384923016,1757627469549,-400.0,0.00027671,7]
[384923017,1757627469558,-2318.27,0.00027671,7]
[384923018,1757627469567,-151.0,0.00027671,7]
[384923019,1757627469576,-400.0,0.00027671,7]
[384923020,1757627469586,-151.0,0.00027671,7]
[384923021,1757627469595,-1281.61,0.00027671,7]
[384923022,1757627469604,-400.0,0.00027671,7]
[384923023,1757627469613,-151.0,0.00027671,7]
[384923024,1757627469623,-2011.65,0.00027671,7]
[384923025,1757627469632,-1166.63,0.00027671,7]
[384923026,1757627469641,-746.18,0.00027671,7]
[384923027,1757627469650,-400.0,0.00027671,7]
[384923028,1757627469659,-400.0,0.00027671,7]
[384923029,1757627469669,-400.0,0.00027671,7]
[384923030,1757627469678,-1306.49,0.00027671,7]
[384923031,1757627469687,-1825.7,0.00027671,7]
[384923032,1757627469696,-762.39,0.00027671,7]
[384923033,1757627469705,-400.0,0.00027671,7]
[384923034,1757627469715,-3800.69,0.00027671,7]
[384923035,1757627469724,-162.521225,0.00027671,7]
[384923036,1757627469734,-162.521225,0.00027671,7]
[384923037,1757627469743,-162.521225,0.00027671,7]
[384923038,1757627469754,-2183.28,0.00027671,7]
[384923039,1757627469763,-631.92,0.00027671,7]
[384923040,1757627469772,-2113.02,0.00027671,7]
[384923041,1757627469781,-151.0,0.00027671,7]
[384923042,1757627469790,-400.0,0.00027671,7]
[384923043,1757627469799,-412.34,0.00027671,7]
[384923044,1757627469808,-168.485078,0.00027671,7]
[384923045,1757627469817,-400.0,0.00027671,7]
[384923046,1757627469826,-162.521225,0.00027671,7]
[384923047,1757627469835,-162.521225,0.00027671,7]
[384923048,1757627469845,-400.0,0.00027671,7]
[384923049,1757627469855,-162.521225,0.00027671,7]
[384923050,1757627469864,-478.43,0.00027671,7]
[384923051,1757627469874,-151.0,0.00027671,7]
[384923052,1757627469883,-162.521225,0.00027671,7]
[384923053,1757627469893,-151.0,0.00027671,7]
[384923054,1757627469903,-764.83,0.00027671,7]
[384923055,1757627469912,-151.0,0.00027671,7]
[384923056,1757627469922,-400.0,0.00027671,7]
[384923057,1757627469931,-658.91,0.00027671,7]
[384923058,1757627469941,-162.521225,0.00027671,7]
[384923059,1757627469950,-162.521225,0.00027671,7]
[384923060,1757627469960,-2212.12,0.00027671,7]
[384923061,1757627469969,-400.0,0.00027671,7]
[384923062,1757627469979,-400.0,0.00027671,7]
[384923063,1757627469988,-151.0,0.00027671,7]
[384923064,1757627469998,-305.591933,0.00027671,7]
[384923065,1757627470007,-151.0,0.00027671,7]